[Event "Titled Tuesday Blitz January 18 2022"]
[White "Sadhwani, Raunak"]
[Black "Weetik, Vjacheslav"]
[WhiteFideId "35093487"]
[BlackFideId "4153472"]
[WhiteElo "2616"]
[BlackElo "2469"]
[Result "1-0"]
[Round "11"]
[TimeControl "180+1"]
[Date "2022.01.18"]
[WhiteClock "0:01:12"]
[BlackClock "0:00:01"]

1. e4 {[%clk 0:03:00]}  c6 {[%clk 0:03:00]} 2. Nf3 {[%clk 0:03:00]}  d5 {[%clk 0:03:00]} 3. d3 {[%clk 0:03:01]}  Bg4 {[%clk 0:03:00]} 4. h3 {[%clk 0:03:01]}  Bh5 {[%clk 0:02:59]} 5. Nc3 {[%clk 0:03:00]}  e6 {[%clk 0:02:59]} 6. g4 {[%clk 0:03:00]}  Bg6 {[%clk 0:02:59]} 7. h4 {[%clk 0:02:59]}  dxe4 {[%clk 0:02:52]} 8. h5 {[%clk 0:03:00]}  Bxh5 {[%clk 0:02:39]} 9. gxh5 {[%clk 0:03:00]}  exf3 {[%clk 0:02:39]} 10. Qxf3 {[%clk 0:02:59]}  Nf6 {[%clk 0:02:31]} 11. Bg5 {[%clk 0:02:57]}  Nbd7 {[%clk 0:02:25]} 12. O-O-O {[%clk 0:02:51]}  Qa5 {[%clk 0:02:21]} 13. Bd2 {[%clk 0:02:46]}  O-O-O {[%clk 0:02:04]} 14. Kb1 {[%clk 0:02:46]}  Qf5 {[%clk 0:02:00]} 15. Qe2 {[%clk 0:02:43]}  Bb4 {[%clk 0:01:54]} 16. a3 {[%clk 0:02:30]}  Be7 {[%clk 0:01:44]} 17. Bg2 {[%clk 0:02:20]}  g6 {[%clk 0:01:39]} 18. h6 {[%clk 0:02:19]}  Nd5 {[%clk 0:01:32]} 19. Ne4 {[%clk 0:02:16]}  Nf4 {[%clk 0:01:30]} 20. Bxf4 {[%clk 0:02:13]}  Qxf4 {[%clk 0:01:30]} 21. Rh3 {[%clk 0:02:13]}  Qc7 {[%clk 0:01:21]} 22. d4 {[%clk 0:02:07]}  Rhe8 {[%clk 0:01:17]} 23. Rb3 {[%clk 0:02:05]}  f5 {[%clk 0:01:09]} 24. Nd2 {[%clk 0:02:02]}  e5 {[%clk 0:01:04]} 25. d5 {[%clk 0:02:01]}  Nc5 {[%clk 0:00:58]} 26. Rc3 {[%clk 0:02:01]}  e4 {[%clk 0:00:52]} 27. dxc6 {[%clk 0:01:58]}  Kb8 {[%clk 0:00:28]} 28. cxb7 {[%clk 0:01:40]}  Qxb7 {[%clk 0:00:28]} 29. Nb3 {[%clk 0:01:40]}  Na4 {[%clk 0:00:24]} 30. Rc4 {[%clk 0:01:40]}  Nb6 {[%clk 0:00:22]} 31. Rcd4 {[%clk 0:01:40]}  Rxd4 {[%clk 0:00:15]} 32. Rxd4 {[%clk 0:01:41]}  Bf6 {[%clk 0:00:16]} 33. Rd6 {[%clk 0:01:37]}  Be5 {[%clk 0:00:15]} 34. Na5 {[%clk 0:01:27]}  Qc7 {[%clk 0:00:13]} 35. Qb5 {[%clk 0:01:27]}  Rc8 {[%clk 0:00:08]} 36. Qxe5 {[%clk 0:01:19]}  Qxc2+ {[%clk 0:00:05]} 37. Ka2 {[%clk 0:01:19]}  Ka8 {[%clk 0:00:02]} 38. Bf1 {[%clk 0:01:13]}  Na4 {[%clk 0:00:01]} 39. Qd5+ {[%clk 0:01:12]}  Kb8 {[%clk 0:00:01]} 40. Qb7# {[%clk 0:01:12]} 1-0


[Site "https://www.chess.com"]

[Event "Titled Tuesday Blitz January 18 2022"]
[White "Samunenkov, Ihor"]
[Black "Svane, Frederik"]
[WhiteFideId "14187086"]
[BlackFideId "12923044"]
[WhiteElo "2406"]
[BlackElo "2459"]
[Result "0-1"]
[Round "11"]
[TimeControl "180+1"]
[Date "2022.01.18"]
[WhiteClock "0:00:03"]
[BlackClock "0:00:05"]

1. d4 {[%clk 0:03:00]}  Nf6 {[%clk 0:03:00]} 2. c4 {[%clk 0:03:01]}  e6 {[%clk 0:03:00]} 3. Nc3 {[%clk 0:03:02]}  Bb4 {[%clk 0:03:00]} 4. e3 {[%clk 0:03:02]}  O-O {[%clk 0:03:00]} 5. Bd2 {[%clk 0:03:02]}  d5 {[%clk 0:02:59]} 6. Nf3 {[%clk 0:03:03]}  b6 {[%clk 0:02:56]} 7. cxd5 {[%clk 0:03:03]}  exd5 {[%clk 0:02:57]} 8. Rc1 {[%clk 0:03:04]}  Re8 {[%clk 0:02:45]} 9. Bd3 {[%clk 0:02:57]}  Bf8 {[%clk 0:02:31]} 10. O-O {[%clk 0:02:49]}  c5 {[%clk 0:02:29]} 11. Ne5 {[%clk 0:02:39]}  Bb7 {[%clk 0:02:24]} 12. f4 {[%clk 0:01:59]}  Nc6 {[%clk 0:02:19]} 13. Ne2 {[%clk 0:01:59]}  Rc8 {[%clk 0:02:12]} 14. Be1 {[%clk 0:01:43]}  Ne4 {[%clk 0:01:45]} 15. Bxe4 {[%clk 0:01:37]}  dxe4 {[%clk 0:01:46]} 16. Nxf7 {[%clk 0:00:53]}  Kxf7 {[%clk 0:01:47]} 17. Qb3+ {[%clk 0:00:53]}  c4 {[%clk 0:01:48]} 18. Qxc4+ {[%clk 0:00:50]}  Kg6 {[%clk 0:01:48]} 19. f5+ {[%clk 0:00:48]}  Kh6 {[%clk 0:01:48]} 20. Bg3 {[%clk 0:00:40]}  Bd6 {[%clk 0:01:08]} 21. Nf4 {[%clk 0:00:25]}  Ne5 {[%clk 0:01:01]} 22. Qe2 {[%clk 0:00:23]}  Nf3+ {[%clk 0:00:37]} 23. gxf3 {[%clk 0:00:21]}  exf3 {[%clk 0:00:38]} 24. Qd3 {[%clk 0:00:16]}  Be4 {[%clk 0:00:34]} 25. Qb5 {[%clk 0:00:16]}  Qg5 {[%clk 0:00:23]} 26. Qd7 {[%clk 0:00:11]}  Bxf4 {[%clk 0:00:13]} 27. exf4 {[%clk 0:00:07]}  Qxf5 {[%clk 0:00:14]} 28. Qd6+ {[%clk 0:00:06]}  Re6 {[%clk 0:00:08]} 29. Qd7 {[%clk 0:00:04]}  Rec6 {[%clk 0:00:02]} 30. Qxf5 {[%clk 0:00:03]}  Bxf5 {[%clk 0:00:03]} 31. Rxc6+ {[%clk 0:00:04]}  Rxc6 {[%clk 0:00:04]} 32. Rxf3 {[%clk 0:00:04]}  Rc2 {[%clk 0:00:04]} 33. Rf2 {[%clk 0:00:04]}  Rc1+ {[%clk 0:00:05]} 34. Rf1 {[%clk 0:00:04]}  Rc2 {[%clk 0:00:05]} 35. Rf2 {[%clk 0:00:03]}  Rc1+ {[%clk 0:00:06]} 36. Kg2 {[%clk 0:00:04]}  Be4+ {[%clk 0:00:06]} 37. Kh3 {[%clk 0:00:04]}  Kh5 {[%clk 0:00:07]} 38. f5 {[%clk 0:00:04]}  Rg1 {[%clk 0:00:06]} 39. Rf4 {[%clk 0:00:03]}  Bg2# {[%clk 0:00:05]} 0-1


[Site "https://www.chess.com"]

[Event "Titled Tuesday Blitz January 18 2022"]
[White "Sebag, Marie"]
[Black "Rudzinska, Michalina"]
[WhiteFideId "617822"]
[BlackFideId "1172883"]
[WhiteElo "2482"]
[BlackElo "1904"]
[Result "1-0"]
[Round "11"]
[TimeControl "180+1"]
[Date "2022.01.18"]
[WhiteClock "0:00:46"]
[BlackClock "0:01:36"]

1. d4 {[%clk 0:03:00]}  Nf6 {[%clk 0:02:55]} 2. Nf3 {[%clk 0:03:00]}  e6 {[%clk 0:02:55]} 3. Bf4 {[%clk 0:03:00]}  c5 {[%clk 0:02:55]} 4. e3 {[%clk 0:02:59]}  b6 {[%clk 0:02:55]} 5. Be2 {[%clk 0:02:56]}  Bb7 {[%clk 0:02:56]} 6. O-O {[%clk 0:02:56]}  d6 {[%clk 0:02:56]} 7. c4 {[%clk 0:02:55]}  Be7 {[%clk 0:02:55]} 8. Nc3 {[%clk 0:02:54]}  Nbd7 {[%clk 0:02:55]} 9. h3 {[%clk 0:02:55]}  O-O {[%clk 0:02:55]} 10. Qc2 {[%clk 0:02:53]}  Re8 {[%clk 0:02:53]} 11. Rad1 {[%clk 0:02:53]}  cxd4 {[%clk 0:02:53]} 12. exd4 {[%clk 0:02:52]}  Rc8 {[%clk 0:02:51]} 13. Rfe1 {[%clk 0:02:48]}  a6 {[%clk 0:02:51]} 14. Qd2 {[%clk 0:02:39]}  Nf8 {[%clk 0:02:50]} 15. b3 {[%clk 0:02:35]}  Ng6 {[%clk 0:02:50]} 16. Bg3 {[%clk 0:02:35]}  Bf8 {[%clk 0:02:44]} 17. Nh4 {[%clk 0:02:11]}  Ne4 {[%clk 0:02:35]} 18. Nxe4 {[%clk 0:02:09]}  Bxe4 {[%clk 0:02:36]} 19. Nxg6 {[%clk 0:02:06]}  Bxg6 {[%clk 0:02:37]} 20. Bf3 {[%clk 0:02:03]}  Qd7 {[%clk 0:02:26]} 21. Re2 {[%clk 0:01:52]}  b5 {[%clk 0:02:26]} 22. Rc1 {[%clk 0:01:45]}  bxc4 {[%clk 0:02:26]} 23. bxc4 {[%clk 0:01:45]}  Qa4 {[%clk 0:02:23]} 24. Qc3 {[%clk 0:01:41]}  d5 {[%clk 0:02:06]} 25. c5 {[%clk 0:01:40]}  Be7 {[%clk 0:02:00]} 26. Be5 {[%clk 0:01:26]}  Bd8 {[%clk 0:01:58]} 27. Qb3 {[%clk 0:01:22]}  Qc6 {[%clk 0:01:52]} 28. Bd6 {[%clk 0:01:12]}  Bc7 {[%clk 0:01:52]} 29. Bxc7 {[%clk 0:01:08]}  Qxc7 {[%clk 0:01:53]} 30. Rce1 {[%clk 0:01:03]}  Rb8 {[%clk 0:01:51]} 31. Qxd5 {[%clk 0:00:59]}  Red8 {[%clk 0:01:50]} 32. Qe5 {[%clk 0:00:50]}  Qa5 {[%clk 0:01:37]} 33. c6 {[%clk 0:00:48]}  Rbc8 {[%clk 0:01:36]} 34. Qxa5 {[%clk 0:00:46]} 1-0


[Site "https://www.chess.com"]

[Event "Titled Tuesday Blitz January 18 2022"]
[White "Shipov, Sergei"]
[Black "Krstulovic, Alex"]
[WhiteFideId "4113624"]
[BlackFideId "760056"]
[WhiteElo "2767"]
[BlackElo "2193"]
[Result "1-0"]
[Round "11"]
[TimeControl "180+1"]
[Date "2022.01.18"]
[WhiteClock "0:00:32"]
[BlackClock "0:00:02"]

1. d4 {[%clk 0:03:00]}  Nf6 {[%clk 0:02:59]} 2. c4 {[%clk 0:02:59]}  e6 {[%clk 0:02:59]} 3. Nc3 {[%clk 0:02:59]}  Bb4 {[%clk 0:02:58]} 4. Qc2 {[%clk 0:03:00]}  O-O {[%clk 0:02:57]} 5. a3 {[%clk 0:03:00]}  Bxc3+ {[%clk 0:02:57]} 6. Qxc3 {[%clk 0:03:01]}  d5 {[%clk 0:02:55]} 7. e3 {[%clk 0:03:01]}  b6 {[%clk 0:02:51]} 8. cxd5 {[%clk 0:03:01]}  exd5 {[%clk 0:02:49]} 9. Bd3 {[%clk 0:03:01]}  Ba6 {[%clk 0:02:48]} 10. Bxa6 {[%clk 0:02:58]}  Nxa6 {[%clk 0:02:49]} 11. Qc6 {[%clk 0:02:58]}  Re8 {[%clk 0:02:38]} 12. Ne2 {[%clk 0:02:58]}  Re6 {[%clk 0:02:38]} 13. Qb7 {[%clk 0:02:58]}  Qc8 {[%clk 0:02:09]} 14. Qxc8+ {[%clk 0:02:58]}  Rxc8 {[%clk 0:02:10]} 15. f3 {[%clk 0:02:58]}  c5 {[%clk 0:02:09]} 16. Bd2 {[%clk 0:02:59]}  Rec6 {[%clk 0:02:06]} 17. Kf2 {[%clk 0:02:58]}  Nc7 {[%clk 0:01:59]} 18. Rhc1 {[%clk 0:02:42]}  Ne6 {[%clk 0:01:57]} 19. Ke1 {[%clk 0:02:19]}  Ne8 {[%clk 0:01:49]} 20. a4 {[%clk 0:02:02]}  Nd6 {[%clk 0:01:42]} 21. b3 {[%clk 0:02:02]}  cxd4 {[%clk 0:01:32]} 22. Rxc6 {[%clk 0:01:28]}  Rxc6 {[%clk 0:01:31]} 23. exd4 {[%clk 0:01:28]}  Nf5 {[%clk 0:01:31]} 24. Bc3 {[%clk 0:01:28]}  Ne3 {[%clk 0:01:25]} 25. Kf2 {[%clk 0:01:27]}  Nf5 {[%clk 0:01:13]} 26. g4 {[%clk 0:01:25]}  Nd6 {[%clk 0:01:10]} 27. Rc1 {[%clk 0:01:25]}  h6 {[%clk 0:01:02]} 28. Ke3 {[%clk 0:01:21]}  f5 {[%clk 0:00:56]} 29. h3 {[%clk 0:01:19]}  Kf7 {[%clk 0:00:55]} 30. Bb4 {[%clk 0:01:19]}  Rxc1 {[%clk 0:00:29]} 31. Nxc1 {[%clk 0:01:20]}  f4+ {[%clk 0:00:26]} 32. Kd3 {[%clk 0:01:17]}  Ne8 {[%clk 0:00:17]} 33. Ne2 {[%clk 0:01:17]}  g5 {[%clk 0:00:13]} 34. Nc3 {[%clk 0:01:15]}  N8c7 {[%clk 0:00:13]} 35. Bd6 {[%clk 0:01:15]}  Ke8 {[%clk 0:00:12]} 36. Be5 {[%clk 0:01:09]}  Kd7 {[%clk 0:00:12]} 37. b4 {[%clk 0:01:09]}  Kc6 {[%clk 0:00:12]} 38. b5+ {[%clk 0:01:10]}  Kd7 {[%clk 0:00:12]} 39. Bf6 {[%clk 0:01:06]}  Ke8 {[%clk 0:00:12]} 40. Be5 {[%clk 0:01:03]}  Kd7 {[%clk 0:00:12]} 41. Kc2 {[%clk 0:01:04]}  Kc8 {[%clk 0:00:11]} 42. Kb3 {[%clk 0:01:04]}  Kd7 {[%clk 0:00:11]} 43. Kb4 {[%clk 0:01:05]}  Kc8 {[%clk 0:00:11]} 44. a5 {[%clk 0:01:05]}  Kd7 {[%clk 0:00:11]} 45. a6 {[%clk 0:01:04]}  Kc8 {[%clk 0:00:10]} 46. Bf6 {[%clk 0:01:04]}  Kd7 {[%clk 0:00:11]} 47. Ne2 {[%clk 0:01:03]}  Ke8 {[%clk 0:00:09]} 48. h4 {[%clk 0:01:00]}  Kd7 {[%clk 0:00:08]} 49. h5 {[%clk 0:00:59]}  Ne8 {[%clk 0:00:08]} 50. Be5 {[%clk 0:00:59]}  N8c7 {[%clk 0:00:07]} 51. Nc3 {[%clk 0:00:58]}  Ke8 {[%clk 0:00:07]} 52. Ne2 {[%clk 0:00:53]}  Kd7 {[%clk 0:00:06]} 53. Ng1 {[%clk 0:00:53]}  Nd8 {[%clk 0:00:02]} 54. Nh3 {[%clk 0:00:51]}  Nf7 {[%clk 0:00:02]} 55. Bg7 {[%clk 0:00:50]}  Ne6 {[%clk 0:00:02]} 56. Bf6 {[%clk 0:00:50]}  Nc7 {[%clk 0:00:01]} 57. Bg7 {[%clk 0:00:47]}  Ne8 {[%clk 0:00:02]} 58. Bf8 {[%clk 0:00:45]}  Ned6 {[%clk 0:00:02]} 59. Ng1 {[%clk 0:00:41]}  Ke8 {[%clk 0:00:02]} 60. Bg7 {[%clk 0:00:41]}  Kd7 {[%clk 0:00:02]} 61. Ne2 {[%clk 0:00:41]}  Nc4 {[%clk 0:00:02]} 62. Nc3 {[%clk 0:00:39]}  Ke6 {[%clk 0:00:02]} 63. Nb1 {[%clk 0:00:34]}  Ne3 {[%clk 0:00:01]} 64. Kc3 {[%clk 0:00:34]}  Nd1+ {[%clk 0:00:01]} 65. Kd2 {[%clk 0:00:33]}  Ne3 {[%clk 0:00:01]} 66. Nc3 {[%clk 0:00:32]}  Nc4+ {[%clk 0:00:02]} 67. Kd3 {[%clk 0:00:32]}  Ncd6 {[%clk 0:00:02]} 68. Kc2 {[%clk 0:00:32]}  Ne8 {[%clk 0:00:02]} 69. Bf8 {[%clk 0:00:32]}  Ned6 {[%clk 0:00:02]} 70. Kb3 {[%clk 0:00:32]}  Nc4 {[%clk 0:00:02]} 71. Kc2 {[%clk 0:00:32]}  Ncd6 {[%clk 0:00:02]} 72. Kd2 {[%clk 0:00:31]}  Nc4+ {[%clk 0:00:02]} 73. Ke2 {[%clk 0:00:32]}  Ncd6 {[%clk 0:00:02]} 74. Kd3 {[%clk 0:00:32]}  Nc4 {[%clk 0:00:02]} 75. Na4 {[%clk 0:00:32]} 1-0


[Site "https://www.chess.com"]

[Event "Titled Tuesday Blitz January 18 2022"]
[White "Svicevic, Rastko"]
[Black "Soderstrom, Adrian"]
[WhiteFideId "916315"]
[BlackFideId "1745786"]
[WhiteElo "2098"]
[BlackElo "2107"]
[Result "0-1"]
[Round "11"]
[TimeControl "180+1"]
[Date "2022.01.18"]
[WhiteClock "0:01:34"]
[BlackClock "0:02:11"]

1. d4 {[%clk 0:03:00]}  Nf6 {[%clk 0:03:00]} 2. Bg5 {[%clk 0:03:01]}  Ne4 {[%clk 0:02:59]} 3. Bf4 {[%clk 0:03:01]}  d5 {[%clk 0:02:58]} 4. e3 {[%clk 0:03:01]}  c5 {[%clk 0:02:58]} 5. f3 {[%clk 0:03:00]}  Nf6 {[%clk 0:02:57]} 6. c3 {[%clk 0:02:42]}  Nc6 {[%clk 0:02:56]} 7. Nd2 {[%clk 0:02:40]}  Qb6 {[%clk 0:02:52]} 8. b3 {[%clk 0:02:36]}  cxd4 {[%clk 0:02:51]} 9. cxd4 {[%clk 0:02:36]}  e5 {[%clk 0:02:43]} 10. dxe5 {[%clk 0:02:28]}  Nh5 {[%clk 0:02:43]} 11. Bd3 {[%clk 0:02:12]}  Nxf4 {[%clk 0:02:40]} 12. exf4 {[%clk 0:02:13]}  Qe3+ {[%clk 0:02:40]} 13. Qe2 {[%clk 0:02:13]}  Qxf4 {[%clk 0:02:41]} 14. Nh3 {[%clk 0:02:07]}  Bxh3 {[%clk 0:02:40]} 15. gxh3 {[%clk 0:02:06]}  Qh4+ {[%clk 0:02:40]} 16. Qf2 {[%clk 0:02:01]}  Qxh3 {[%clk 0:02:27]} 17. O-O-O {[%clk 0:01:58]}  Ba3+ {[%clk 0:02:27]} 18. Kb1 {[%clk 0:01:59]}  O-O {[%clk 0:02:22]} 19. Rhe1 {[%clk 0:01:51]}  Nb4 {[%clk 0:02:18]} 20. Nf1 {[%clk 0:01:46]}  Nxd3 {[%clk 0:02:16]} 21. Rxd3 {[%clk 0:01:47]}  Qf5 {[%clk 0:02:16]} 22. Qd4 {[%clk 0:01:38]}  Bc5 {[%clk 0:02:11]} 23. Qc3 {[%clk 0:01:34]}  Bb4 {[%clk 0:02:11]} 0-1


[Site "https://www.chess.com"]

[Event "Titled Tuesday Blitz January 18 2022"]
[White "Tanenbaum, Zachary"]
[Black "Mickiewicz, Piotr"]
[WhiteFideId "2060850"]
[BlackFideId "1114891"]
[WhiteElo "2168"]
[BlackElo "2266"]
[Result "1-0"]
[Round "11"]
[TimeControl "180+1"]
[Date "2022.01.18"]
[WhiteClock "0:00:59"]
[BlackClock "0:00:11"]

1. e4 {[%clk 0:03:00]}  c5 {[%clk 0:02:59]} 2. Nf3 {[%clk 0:03:01]}  e6 {[%clk 0:02:59]} 3. d4 {[%clk 0:03:01]}  cxd4 {[%clk 0:03:00]} 4. Nxd4 {[%clk 0:03:01]}  Nf6 {[%clk 0:03:01]} 5. Nc3 {[%clk 0:03:01]}  d6 {[%clk 0:03:01]} 6. Be3 {[%clk 0:03:00]}  a6 {[%clk 0:03:01]} 7. f3 {[%clk 0:03:00]}  b5 {[%clk 0:03:01]} 8. Qd2 {[%clk 0:03:00]}  Nbd7 {[%clk 0:03:00]} 9. O-O-O {[%clk 0:03:01]}  Bb7 {[%clk 0:02:59]} 10. g4 {[%clk 0:03:01]}  Nb6 {[%clk 0:02:59]} 11. g5 {[%clk 0:03:00]}  Nfd7 {[%clk 0:02:59]} 12. a3 {[%clk 0:02:57]}  Rc8 {[%clk 0:02:58]} 13. h4 {[%clk 0:02:54]}  Ne5 {[%clk 0:02:56]} 14. f4 {[%clk 0:02:54]}  Nec4 {[%clk 0:02:55]} 15. Bxc4 {[%clk 0:02:54]}  Nxc4 {[%clk 0:02:55]} 16. Qd3 {[%clk 0:02:54]}  Qc7 {[%clk 0:02:52]} 17. Bd2 {[%clk 0:02:54]}  g6 {[%clk 0:02:13]} 18. h5 {[%clk 0:02:48]}  Bg7 {[%clk 0:02:08]} 19. hxg6 {[%clk 0:02:48]}  hxg6 {[%clk 0:02:05]} 20. Rxh8+ {[%clk 0:02:48]}  Bxh8 {[%clk 0:02:05]} 21. Rh1 {[%clk 0:02:49]}  Bg7 {[%clk 0:01:52]} 22. Rh7 {[%clk 0:02:48]}  Kf8 {[%clk 0:01:50]} 23. f5 {[%clk 0:02:28]}  exf5 {[%clk 0:01:02]} 24. exf5 {[%clk 0:02:29]}  Nxb2 {[%clk 0:00:16]} 25. Kxb2 {[%clk 0:02:20]}  gxf5 {[%clk 0:00:16]} 26. Nxf5 {[%clk 0:01:44]}  Be5 {[%clk 0:00:16]} 27. g6 {[%clk 0:01:07]}  Be4 {[%clk 0:00:14]} 28. Qxe4 {[%clk 0:01:06]}  Bxc3+ {[%clk 0:00:13]} 29. Kb1 {[%clk 0:01:06]}  fxg6 {[%clk 0:00:11]} 30. Rxc7 {[%clk 0:00:59]} 1-0


[Site "https://www.chess.com"]

[Event "Titled Tuesday Blitz January 18 2022"]
[White "Tania, Sachdev"]
[Black "Kalogridis, Antonios"]
[WhiteFideId "5007844"]
[BlackFideId "25833901"]
[WhiteElo "2280"]
[BlackElo "1495"]
[Result "0-1"]
[Round "11"]
[TimeControl "180+1"]
[Date "2022.01.18"]
[WhiteClock "0:00:01"]
[BlackClock "0:00:08"]

1. d4 {[%clk 0:03:00]}  Nf6 {[%clk 0:02:59]} 2. c4 {[%clk 0:03:01]}  g6 {[%clk 0:02:59]} 3. Nc3 {[%clk 0:03:01]}  d5 {[%clk 0:03:00]} 4. cxd5 {[%clk 0:02:57]}  Nxd5 {[%clk 0:03:00]} 5. e4 {[%clk 0:02:58]}  Nxc3 {[%clk 0:03:01]} 6. bxc3 {[%clk 0:02:58]}  Bg7 {[%clk 0:03:02]} 7. Be3 {[%clk 0:02:50]}  c5 {[%clk 0:03:01]} 8. Rc1 {[%clk 0:02:40]}  Qa5 {[%clk 0:02:59]} 9. Bc4 {[%clk 0:02:31]}  cxd4 {[%clk 0:02:49]} 10. Bxd4 {[%clk 0:02:31]}  O-O {[%clk 0:02:48]} 11. Bxg7 {[%clk 0:02:28]}  Kxg7 {[%clk 0:02:48]} 12. Ne2 {[%clk 0:02:28]}  Nc6 {[%clk 0:02:46]} 13. O-O {[%clk 0:02:27]}  Bg4 {[%clk 0:02:43]} 14. Qc2 {[%clk 0:02:27]}  Ne5 {[%clk 0:02:39]} 15. Bb3 {[%clk 0:02:22]}  Rfd8 {[%clk 0:02:39]} 16. f3 {[%clk 0:02:21]}  Qb6+ {[%clk 0:02:21]} 17. Nd4 {[%clk 0:02:19]}  Bd7 {[%clk 0:02:20]} 18. Rb1 {[%clk 0:02:15]}  Rac8 {[%clk 0:02:11]} 19. Kh1 {[%clk 0:02:12]}  Qf6 {[%clk 0:01:49]} 20. Qf2 {[%clk 0:01:51]}  Rxc3 {[%clk 0:01:44]} 21. Ne2 {[%clk 0:01:52]}  Rcc8 {[%clk 0:01:29]} 22. Qxa7 {[%clk 0:01:51]}  Bc6 {[%clk 0:01:29]} 23. Nc3 {[%clk 0:01:11]}  Ra8 {[%clk 0:01:11]} 24. Qg1 {[%clk 0:01:10]}  e6 {[%clk 0:01:04]} 25. Nd1 {[%clk 0:01:05]}  Rd2 {[%clk 0:01:00]} 26. Ne3 {[%clk 0:01:03]}  Rad8 {[%clk 0:00:51]} 27. Rf2 {[%clk 0:00:59]}  Rxf2 {[%clk 0:00:43]} 28. Qxf2 {[%clk 0:00:58]}  Bxe4 {[%clk 0:00:43]} 29. Rf1 {[%clk 0:00:44]}  Bc6 {[%clk 0:00:37]} 30. h4 {[%clk 0:00:22]}  Nd3 {[%clk 0:00:28]} 31. Qg3 {[%clk 0:00:23]}  Rd4 {[%clk 0:00:27]} 32. Ng4 {[%clk 0:00:21]}  Qf4 {[%clk 0:00:28]} 33. Qxf4 {[%clk 0:00:16]}  Nxf4 {[%clk 0:00:26]} 34. g3 {[%clk 0:00:13]}  Ne2 {[%clk 0:00:18]} 35. Kh2 {[%clk 0:00:13]}  Rd2 {[%clk 0:00:14]} 36. Rf2 {[%clk 0:00:13]}  Nd4 {[%clk 0:00:11]} 37. Kg2 {[%clk 0:00:13]}  Nxf3 {[%clk 0:00:10]} 38. Rxd2 {[%clk 0:00:12]}  Nxd2+ {[%clk 0:00:11]} 39. Kf2 {[%clk 0:00:13]}  Nxb3 {[%clk 0:00:12]} 40. axb3 {[%clk 0:00:14]}  f6 {[%clk 0:00:12]} 41. b4 {[%clk 0:00:14]}  e5 {[%clk 0:00:13]} 42. Ke3 {[%clk 0:00:15]}  h5 {[%clk 0:00:12]} 43. Nf2 {[%clk 0:00:15]}  Kf7 {[%clk 0:00:13]} 44. Nd3 {[%clk 0:00:15]}  Ke6 {[%clk 0:00:12]} 45. Nc5+ {[%clk 0:00:15]}  Kd5 {[%clk 0:00:13]} 46. Ne4 {[%clk 0:00:16]}  Ke6 {[%clk 0:00:12]} 47. Nc5+ {[%clk 0:00:15]}  Kf5 {[%clk 0:00:13]} 48. Nb3 {[%clk 0:00:10]}  Kg4 {[%clk 0:00:13]} 49. Kf2 {[%clk 0:00:10]}  f5 {[%clk 0:00:13]} 50. Nc5 {[%clk 0:00:09]}  f4 {[%clk 0:00:13]} 51. gxf4 {[%clk 0:00:08]}  exf4 {[%clk 0:00:13]} 52. Ne6 {[%clk 0:00:09]}  Kxh4 {[%clk 0:00:14]} 53. Nxf4 {[%clk 0:00:09]}  Kg5 {[%clk 0:00:14]} 54. Ne6+ {[%clk 0:00:09]}  Kf6 {[%clk 0:00:14]} 55. Nd4 {[%clk 0:00:10]}  Ke5 {[%clk 0:00:12]} 56. Nc2 {[%clk 0:00:09]}  Ke4 {[%clk 0:00:12]} 57. Kg3 {[%clk 0:00:08]}  g5 {[%clk 0:00:11]} 58. Ne1 {[%clk 0:00:05]}  Bd7 {[%clk 0:00:11]} 59. Nf3 {[%clk 0:00:05]}  h4+ {[%clk 0:00:09]} 60. Kf2 {[%clk 0:00:05]}  Kf4 {[%clk 0:00:09]} 61. Nd4 {[%clk 0:00:05]}  h3 {[%clk 0:00:10]} 62. Ne2+ {[%clk 0:00:04]}  Kg4 {[%clk 0:00:09]} 63. Nc3 {[%clk 0:00:03]}  Kh4 {[%clk 0:00:10]} 64. b5 {[%clk 0:00:02]}  g4 {[%clk 0:00:10]} 65. Ne4 {[%clk 0:00:02]}  Bxb5 {[%clk 0:00:09]} 66. Ng3 {[%clk 0:00:03]}  Bc6 {[%clk 0:00:09]} 67. Nf5+ {[%clk 0:00:03]}  Kg5 {[%clk 0:00:10]} 68. Ne3 {[%clk 0:00:04]}  b5 {[%clk 0:00:10]} 69. Kg3 {[%clk 0:00:04]}  Bf3 {[%clk 0:00:11]} 70. Nc2 {[%clk 0:00:03]}  Kf5 {[%clk 0:00:10]} 71. Nb4 {[%clk 0:00:03]}  Ke4 {[%clk 0:00:10]} 72. Nc2 {[%clk 0:00:01]}  Kd3 {[%clk 0:00:09]} 73. Ne1+ {[%clk 0:00:01]}  Kd2 {[%clk 0:00:08]} 0-1


[Site "https://www.chess.com"]